bitfinex/quotes_SOLUSD_20230402
["timestamp","ask_amount","ask_price","bid_price","bid_amount"]
[1680434177796,33.258,21.047,21.042,17.0]
[1680434179791,33.258,21.047,21.041,10.0]
[1680434182103,33.258,21.047,21.04,17.0]
[1680434188203,33.258,21.047,21.039,10.0]
[1680434188406,33.258,21.047,21.041,10.0]
[1680434189604,33.258,21.047,21.04,17.0]
[1680434197507,33.258,21.047,21.027,10.0]
[1680434198097,33.258,21.047,21.027,17.0206425]
[1680434198914,33.258,21.047,21.036,10.0]
[1680434200918,33.258,21.047,21.035,17.0]
[1680434201717,33.258,21.047,21.033,10.0]
[1680434207114,33.258,21.047,21.027,17.0206425]
[1680434207115,33.258,21.047,21.027,10.0]
[1680434207419,10.0,21.045,21.031,17.0]
[1680434207606,20.0,21.044,21.031,17.0]
[1680434222929,27.0,21.046,21.031,17.0]
[1680434223138,10.0,21.044,21.031,17.0]
[1680434223315,20.0,21.043,21.031,17.0]
[1680434224431,20.0,21.043,21.029,17.0]
[1680434224734,20.0,21.043,21.03,10.0]
[1680434224924,20.0,21.043,21.032,10.0]
[1680434225124,10.0,21.044,21.032,10.0]
[1680434225514,20.0,21.043,21.032,10.0]
[1680434226738,20.0,21.043,21.03,10.0]
[1680434227045,20.0,21.043,21.032,10.0]
[1680434227235,10.0,21.043,21.032,10.0]
[1680434227541,20.0,21.042,21.032,10.0]
[1680434227922,20.0,21.042,21.03,10.0]
[1680434228123,10.0,21.043,21.032,10.0]
[1680434228330,20.0,21.042,21.032,10.0]
[1680434228936,10.0,21.043,21.032,10.0]
[1680434229136,20.0,21.042,21.03,10.0]
[1680434229336,20.0,21.042,21.032,10.0]
[1680434230040,10.0,21.043,21.031,17.0]
[1680434230243,20.0,21.042,21.031,17.0]
[1680434231546,10.0,21.043,21.031,17.0]
[1680434231844,20.0,21.042,21.031,17.0]
[1680434232047,20.0,21.042,21.027,10.0]
[1680434232341,10.0,21.041,21.029,17.0]
[1680434232540,10.0,21.041,21.028,17.0]
[1680434232740,10.0,21.041,21.029,10.0]
[1680434232941,20.0,21.042,21.03,17.0]
[1680434235249,20.0,21.042,21.027,10.0]
[1680434235644,20.0,21.042,21.028,17.0]
[1680434236430,10.0,21.041,21.028,17.0]
[1680434236645,10.0,21.041,21.027,10.0]
[1680434236848,10.0,21.041,21.028,17.0]
[1680434238549,10.0,21.041,21.027,10.0]
[1680434238749,10.0,21.041,21.028,17.0]
[1680434240144,10.0,21.041,21.024,124.5507]
[1680434240349,10.0,21.041,21.027,10.0]
[1680434240938,10.0,21.041,21.026,17.0]
[1680434243052,20.0,21.042,21.026,17.0]
[1680434248248,20.0,21.042,21.024,114.5507]
[1680434248452,10.0,21.04,21.024,114.5507]
[1680434248855,17.0,21.039,21.024,114.5507]
[1680434251243,10.0,21.039,21.024,114.5507]
[1680434253160,17.0,21.04,21.024,114.5507]
[1680434263557,10.0,21.04,21.024,114.5507]
[1680434263754,17.0,21.039,21.024,114.5507]
[1680434264866,10.0,21.04,21.024,114.5507]
[1680434265054,17.0,21.039,21.024,114.5507]
[1680434266766,10.0,21.04,21.024,114.5507]
[1680434266956,17.0,21.039,21.024,114.5507]
[1680434268251,10.0,21.04,21.024,114.5507]
[1680434268451,17.0,21.039,21.024,114.5507]
[1680434270050,10.0,21.04,21.024,114.5507]
[1680434270249,17.0,21.039,21.024,114.5507]
[1680434271463,10.0,21.04,21.024,114.5507]
[1680434271759,17.0,21.039,21.024,114.5507]
[1680434273655,10.0,21.04,21.024,114.5507]
[1680434273856,17.0,21.039,21.024,114.5507]
[1680434275356,10.0,21.04,21.024,114.5507]
[1680434275652,17.0,21.039,21.024,114.5507]
[1680434277167,10.0,21.04,21.024,114.5507]
[1680434277357,17.0,21.039,21.024,114.5507]
[1680434278747,10.0,21.04,21.024,114.5507]
[1680434278952,17.0,21.039,21.024,114.5507]
[1680434279573,20.0,21.042,21.024,114.5507]
[1680434279751,20.0,21.042,21.025,27.0]
[1680434279951,20.0,21.041,21.025,27.0]
[1680434280147,20.0,21.044,21.025,27.0]
[1680434292169,20.0,21.046,21.025,27.0]
[1680434295977,20.0,21.046,21.025,34.0206425]
[1680434309384,69.66809627,21.046,21.025,27.0]
[1680434311792,20.0,21.046,21.025,27.0]
[1680434311976,20.0,21.046,21.025,34.0206425]
[1680434322694,20.0,21.046,21.025,34.0206425]
[1680434346125,20.0,21.046,21.04,0.41135683]
[1680434354535,20.0,21.046,21.043,0.41135683]
[1680434364126,19.58864317,21.046,21.025,27.0]
[1680434378464,69.25673944,21.046,21.025,27.0]
[1680434384468,49.66809627,21.046,21.025,27.0]
[1680434386472,10.0,21.044,21.025,27.0]
[1680434386775,20.0,21.043,21.025,27.0]
[1680434387451,10.0,21.044,21.025,27.0]
[1680434387650,20.0,21.043,21.025,27.0]
[1680434388473,10.0,21.044,21.025,27.0]
[1680434388649,20.0,21.043,21.025,27.0]
[1680434388852,20.0,21.045,21.025,27.0]
[1680434402281,69.66809627,21.045,21.025,27.0]
[1680434404083,69.66809627,21.045,21.025,10.0]
[1680434404275,27.0,21.044,21.025,10.0]
[1680434404470,27.0,21.044,21.024,114.5507]
[1680434404471,10.0,21.042,21.024,114.5507]
[1680434404778,10.0,21.04,21.024,114.5507]
[1680434405684,17.0,21.041,21.024,114.5507]
[1680434406269,17.0,21.041,21.025,17.0]
[1680434406584,17.0,21.041,21.026,10.0]
[1680434408371,17.0,21.041,21.025,27.0]
[1680434408791,17.0,21.041,21.025,17.0]
[1680434409890,17.0,21.041,21.024,114.5507]
[1680434416082,80.42230931,21.04,21.024,114.5507]
[1680434416282,10.0,21.038,21.024,114.5507]
[1680434416489,37.0,21.037,21.024,114.5507]
[1680434419894,10.0,21.035,21.021,113.8469]
[1680434420297,10.0,21.033,21.021,113.8469]
[1680434420598,20.0,21.032,21.021,113.8469]
[1680434421487,20.0,21.032,21.012,10.0]
[1680434421801,10.0,21.031,21.012,10.0]
[1680434422098,10.0,21.029,21.012,10.0]
[1680434422304,20.0,21.028,21.012,10.0]
[1680434422614,20.0,21.03,21.012,10.0]
[1680434422795,20.0,21.03,21.014,10.0]
[1680434422998,20.0,21.03,21.016,10.0]
[1680434423397,20.0,21.03,21.017,17.0]
[1680434423894,10.0,21.03,21.017,17.0]
[1680434424095,20.0,21.029,21.017,17.0]
[1680434424313,20.0,21.031,21.017,17.0]
[1680434425710,19.035597,21.03,21.017,17.0]
[1680434425923,20.0,21.029,21.017,17.0]
[1680434427598,20.0,21.029,21.016,10.0]
[1680434428814,20.0,21.029,21.015,17.0]
[1680434455331,20.0,21.029,21.016,17.0]
[1680434455833,20.0,21.029,21.016,10.0]
[1680434457138,20.0,21.029,21.015,17.0]
[1680434458735,20.0,21.029,21.014,10.0]
[1680434458935,10.0,21.027,21.012,10.0]
[1680434459135,20.0,21.026,21.012,10.0]
[1680434459840,10.0,21.027,21.012,10.0]
[1680434460018,20.0,21.026,21.012,10.0]
[1680434460733,10.0,21.027,21.012,10.0]
[1680434460940,20.0,21.026,21.012,10.0]
[1680434461442,10.0,21.027,21.012,10.0]
[1680434461645,20.0,21.026,21.012,10.0]
[1680434462441,10.0,21.027,21.012,10.0]
[1680434462643,20.0,21.026,21.012,10.0]
[1680434463643,10.0,21.027,21.012,10.0]
[1680434463838,20.0,21.026,21.012,10.0]
[1680434464734,10.0,21.027,21.012,10.0]
[1680434464934,20.0,21.026,21.012,10.0]
[1680434465948,10.0,21.027,21.004,6.93251466]
[1680434466147,20.0,21.026,21.013,10.0]
[1680434467135,20.0,21.027,21.013,10.0]
[1680434468841,17.0,21.026,21.004,6.93251466]
[1680434469044,20.0,21.025,21.004,6.93251466]
[1680434485572,20.0,21.025,21.011,112.4969]
[1680434485768,17.0,21.024,21.011,112.4969]
[1680434485979,20.0,21.023,21.011,112.4969]
[1680434487363,17.0,21.022,21.011,112.4969]
[1680434487564,20.0,21.021,21.011,112.4969]
[1680434523894,20.0,21.021,21.012,10.0]
[1680434524100,20.0,21.028,21.013,17.0]
[1680434524282,20.0,21.028,21.014,10.0]
[1680434524484,27.12230934,21.028,21.014,10.0]
[1680434524682,20.0,21.028,21.016,10.0]
[1680434526397,17.0,21.027,21.016,10.0]
[1680434526694,17.0,21.027,21.014,10.0]
[1680434526887,20.0,21.026,21.014,10.0]
[1680434529500,20.0,21.026,21.012,10.0]
[1680434529698,17.0,21.025,21.012,10.0]
[1680434529997,20.0,21.024,21.012,10.0]
[1680434530794,17.0,21.023,21.012,10.0]
[1680434530987,20.0,21.022,21.012,10.0]
[1680434533503,20.0,21.027,21.014,10.0]
[1680434533797,20.0,21.028,21.014,10.0]
[1680434533997,17.0,21.027,21.014,10.0]
[1680434534206,20.0,21.026,21.014,10.0]
[1680434540711,20.0,21.026,21.012,10.0]
[1680434541800,17.0,21.025,21.012,10.0]
[1680434542004,20.0,21.024,21.012,10.0]
[1680434542195,17.0,21.023,21.011,112.4969]
[1680434542396,20.0,21.022,21.011,112.4969]
[1680434547509,17.0,21.021,21.011,112.4969]
[1680434547710,20.0,21.022,21.011,112.4969]
[1680434547896,20.0,21.026,21.011,112.4969]
[1680434548096,17.0,21.025,21.012,10.0]
[1680434548308,20.0,21.024,21.012,10.0]
[1680434549007,20.0,21.026,21.012,10.0]
[1680434549203,17.0,21.025,21.012,10.0]
[1680434549397,20.0,21.024,21.012,10.0]
[1680434559715,20.0,21.024,21.012,9.92817205]
[1680434563313,20.0,21.024,21.011,112.4969]
[1680434565302,20.0,21.024,21.011,112.4969]
[1680434565718,20.0,21.024,21.012,10.0]
[1680434566824,20.0,21.028,21.014,10.0]
[1680434567118,20.0,21.028,21.016,10.0]
[1680434568320,27.12230934,21.028,21.016,10.0]
[1680434575725,27.12230934,21.028,21.014,10.0]
[1680434578529,20.0,21.028,21.016,10.0]
[1680434578711,20.0,21.029,21.016,10.0]
[1680434584229,20.0,21.029,21.014,10.0]
[1680434585529,20.0,21.029,21.016,10.0]
[1680434591135,20.0,21.029,21.014,10.0]
[1680434591434,20.0,21.029,21.016,10.0]
[1680434600039,20.0,21.029,21.014,10.0]
[1680434600332,20.0,21.029,21.016,10.0]
[1680434601544,63.29999997,21.029,21.016,10.0]
[1680434603640,20.0,21.029,21.016,10.0]
[1680434603945,20.0,21.029,21.018,10.0]
[1680434604139,20.0,21.029,21.02,10.0]
[1680434605742,19.035597,21.03,21.02,10.0]
[1680434605941,19.035597,21.03,21.022,10.0]
[1680434606441,19.035597,21.03,21.023,17.0]
[1680434607432,19.035597,21.03,21.024,10.0]
[1680434607633,16.641,21.032,21.025,17.0]
[1680434607849,20.0,21.031,21.025,17.0]
[1680434609150,20.0,21.031,21.026,10.0]
[1680434609357,20.0,21.031,21.027,17.0]
[1680434609651,20.0,21.031,21.028,10.0]
[1680434610448,20.0,21.031,21.03,10.0]
[1680434610847,19.92328512,21.031,21.03,27.0]
[1680434611047,19.92328512,21.031,21.03,17.0]
[1680434611351,35.672065,21.032,21.029,17.0]
[1680434611549,35.672065,21.032,21.03,10.0]
[1680434611738,35.672065,21.032,21.031,17.0]
[1680434615638,35.672065,21.032,21.028,10.0]
[1680434615835,35.672065,21.032,21.026,10.0]
[1680434622352,35.672065,21.032,21.028,10.0]
[1680434623961,35.672065,21.032,21.03,10.0]
[1680434624253,35.672065,21.032,21.031,17.0]
[1680434626452,16.641,21.032,21.031,17.0]
[1680434626759,16.641,21.032,21.03,10.0]
[1680434626949,16.641,21.032,21.031,17.0]
[1680434630456,16.641,21.032,21.03,10.0]
[1680434632257,10.0,21.051,21.03,10.0]
[1680434632560,10.0,21.051,21.032,10.0]
[1680434632749,10.0,21.051,21.034,10.0]
[1680434633154,49.66809627,21.047,21.034,10.0]
[1680434636262,19.024528,21.04,21.034,10.0]
[1680434639260,19.024528,21.04,21.036,10.0]
[1680434642569,19.024528,21.04,21.035,17.0]
[1680434643066,19.024528,21.04,21.034,10.0]
[1680434648155,7.12230934,21.048,21.034,10.0]
[1680434648876,7.12230934,21.048,21.036,10.0]
[1680434655381,7.12230934,21.048,21.035,17.0]
[1680434656780,7.12230934,21.048,21.036,10.0]
[1680434657090,7.12230934,21.048,21.038,10.0]
[1680434657580,19.023512,21.042,21.038,10.0]
[1680434658479,19.023512,21.042,21.04,10.0]
[1680434658778,19.023512,21.042,21.04,27.0]
[1680434658969,53.268,21.041,21.04,27.0]
[1680434659984,53.268,21.041,21.04,17.0]
[1680434660187,53.268,21.041,21.04,10.0]
[1680434660485,53.268,21.041,21.04,27.0]
[1680434661485,53.268,21.041,21.04,17.0]
[1680434661687,53.268,21.041,21.039,17.0]
[1680434663092,53.268,21.041,21.038,10.0]
[1680434664389,53.268,21.041,21.036,10.0]
[1680434665082,53.268,21.041,21.034,10.0]
[1680434665380,53.268,21.041,21.035,17.0]
[1680434668986,53.268,21.041,21.036,10.0]
[1680434669283,53.268,21.041,21.038,10.0]
[1680434672893,53.268,21.041,21.04,10.0]
[1680434673390,53.268,21.041,21.039,17.0]
[1680434678300,53.268,21.041,21.038,10.0]
[1680434678490,53.268,21.041,21.039,17.0]
[1680434681703,53.268,21.041,21.038,10.0]
[1680434681902,53.268,21.041,21.039,17.0]
[1680434686207,53.268,21.041,21.038,10.0]
[1680434686404,53.268,21.041,21.039,17.0]
[1680434692607,53.268,21.041,21.034,10.0]
[1680434692810,53.268,21.041,21.036,10.0]
[1680434693000,53.268,21.041,21.038,10.0]
[1680434693402,53.268,21.041,21.039,17.0]
[1680434702805,53.268,21.041,21.038,10.0]
[1680434703004,53.268,21.041,21.04,10.0]
[1680434703420,53.268,21.041,21.04,27.0]
[1680434704117,53.268,21.041,21.04,17.0]
[1680434704324,53.268,21.041,21.039,17.0]
[1680434705521,53.268,21.041,21.038,10.0]
[1680434705722,53.268,21.041,21.039,17.0]
[1680434707716,53.268,21.041,21.038,10.0]
[1680434708220,53.268,21.041,21.039,17.0]
[1680434714512,53.268,21.041,21.038,10.0]
[1680434714715,53.268,21.041,21.039,17.0]
[1680434716622,53.268,21.041,21.036,10.0]
[1680434718121,53.268,21.041,21.032,10.0]
[1680434718322,53.268,21.041,21.036,10.0]
[1680434719524,53.268,21.041,21.035,17.0]
[1680434722840,53.268,21.041,21.032,10.0]
[1680434724833,53.268,21.041,21.021,117.9601]
[1680434732523,53.268,21.041,21.028,10.0]
[1680434736727,53.268,21.041,21.03,10.0]
[1680434737138,53.268,21.041,21.032,10.0]
[1680434738353,53.268,21.041,21.03,10.0]
[1680434738528,53.268,21.041,21.032,10.0]
[1680434739644,53.268,21.041,21.03,10.0]
[1680434739845,53.268,21.041,21.032,10.0]
[1680434742050,53.268,21.041,21.031,17.0]
[1680434756764,53.268,21.041,21.03,10.0]
[1680434756960,53.268,21.041,21.032,17.0]
[1680434757374,53.268,21.041,21.032,10.0]
[1680434758379,53.268,21.041,21.031,17.0]
[1680434760279,53.268,21.041,21.03,10.0]
[1680434761174,53.268,21.041,21.028,10.0]
[1680434761373,53.268,21.041,21.03,10.0]
[1680434766592,53.268,21.041,21.029,17.0]
[1680434768986,53.268,21.041,21.03,10.0]
[1680434769172,53.268,21.041,21.031,17.0]
[1680434769372,53.268,21.041,21.032,10.0]
[1680434769576,53.268,21.041,21.034,10.0]
[1680434769875,53.268,21.041,21.035,17.0]
[1680434771370,53.268,21.041,21.034,10.0]
[1680434771570,53.268,21.041,21.035,17.0]
[1680434776788,53.268,21.041,21.034,10.0]
[1680434776983,53.268,21.041,21.035,17.0]
[1680434786699,53.268,21.041,21.034,10.0]
[1680434786881,53.268,21.041,21.035,17.0]
[1680434791595,53.268,21.041,21.034,10.0]
[1680434791797,53.268,21.041,21.035,17.0]
[1680434794400,53.268,21.041,21.034,10.0]
[1680434794603,53.268,21.041,21.032,10.0]
[1680434798397,53.268,21.041,21.03,10.0]
[1680434798602,53.268,21.041,21.032,10.0]
[1680434800505,53.268,21.041,21.031,17.0]
[1680434802799,60.39030934,21.041,21.018,107.28901069]
[1680434803607,60.39030934,21.041,21.021,235.2926]
[1680434808507,60.39030934,21.041,21.028,10.0]
[1680434810812,60.39030934,21.041,21.028,10.0]
[1680434814107,60.39030934,21.041,21.027,17.0]
[1680434818011,60.39030934,21.041,21.026,10.0]
[1680434818213,17.0,21.04,21.021,117.9601]
[1680434818511,20.0,21.039,21.021,117.9601]
[1680434818720,27.0,21.038,21.016,10.0]
[1680434818901,20.0,21.037,21.016,10.0]
[1680434819098,17.0,21.036,21.016,10.0]
[1680434819295,30.0,21.035,21.017,17.0]
[1680434819498,10.0,21.034,21.018,10.0]
[1680434819719,20.0,21.033,21.02,10.0]
[1680434820213,27.12230934,21.033,21.021,17.0]
[1680434820400,7.12230934,21.032,21.021,17.0]
[1680434820819,20.0,21.031,21.018,10.0]
[1680434821003,20.0,21.031,21.019,17.0]
[1680434821320,7.12230934,21.03,21.019,17.0]
[1680434821821,7.12230934,21.03,21.018,10.0]
[1680434827824,7.12230934,21.03,21.016,10.0]
[1680434828014,7.12230934,21.03,21.018,10.0]
[1680434832328,7.12230934,21.03,21.02,10.0]
[1680434833120,20.0,21.031,21.022,10.0]
[1680434833619,20.0,21.032,21.022,10.0]
[1680434833830,20.0,21.032,21.02,10.0]
[1680434834031,20.0,21.032,21.022,10.0]
[1680434835625,20.0,21.032,21.02,10.0]
[1680434835827,20.0,21.032,21.022,10.0]
[1680434837127,20.0,21.032,21.023,17.0]
[1680434848642,20.0,21.031,21.023,17.0]
[1680434848819,20.0,21.035,21.023,17.0]
[1680434849020,20.0,21.035,21.024,10.0]
[1680434849223,20.0,21.038,21.026,10.0]
[1680434849423,20.0,21.039,21.027,17.0]
[1680434849722,42.39989035,21.04,21.028,10.0]
[1680434849920,42.39989035,21.04,21.029,17.0]
[1680434851237,42.39989035,21.04,21.028,10.0]
[1680434851421,42.39989035,21.04,21.03,10.0]
[1680434854039,42.39989035,21.04,21.029,17.0]
[1680434856123,42.39989035,21.04,21.028,10.0]
[1680434856441,42.39989035,21.04,21.029,17.0]
[1680434862338,42.39989035,21.04,21.028,10.0]
[1680434862540,42.39989035,21.04,21.029,17.0]
[1680434865348,86.97618591,21.041,21.029,17.0]
[1680434869636,33.268,21.041,21.029,17.0]
[1680434874554,33.268,21.041,21.028,10.0]
[1680434874856,33.268,21.041,21.03,10.0]
[1680434875042,33.268,21.041,21.031,17.0]
[1680434877648,33.268,21.041,21.03,10.0]
[1680434877852,33.268,21.041,21.031,17.0]
[1680434885981,33.268,21.041,21.03,10.0]
[1680434886166,33.268,21.041,21.031,17.0]
[1680434901695,33.268,21.041,21.028,10.0]
[1680434901889,33.268,21.041,21.03,10.0]
[1680434908403,33.268,21.041,21.028,10.0]
[1680434908589,20.0,21.04,21.03,10.0]
[1680434910405,20.0,21.04,21.029,17.0]
[1680434917511,20.0,21.04,21.018,10.0]
[1680434917715,20.0,21.04,21.027,10.0]
[1680434918914,20.0,21.04,21.026,17.0]
[1680434930519,20.0,21.04,21.024,118.4003]
[1680434930817,10.0,21.038,21.024,118.4003]
[1680434931022,37.0,21.037,21.024,118.4003]
[1680434931521,10.0,21.036,21.024,118.4003]
[1680434931900,20.0,21.035,21.024,118.4003]
[1680434933018,10.0,21.035,21.024,118.4003]
[1680434933216,20.0,21.034,21.024,118.4003]
[1680434933921,20.0,21.036,21.024,118.4003]
[1680434934125,10.0,21.035,21.024,118.4003]
[1680434934324,20.0,21.034,21.024,118.4003]
[1680434935027,10.0,21.035,21.024,118.4003]
[1680434935228,20.0,21.034,21.024,118.4003]
[1680434935927,10.0,21.035,21.024,118.4003]
[1680434936115,20.0,21.034,21.024,118.4003]
[1680434937014,10.0,21.035,21.024,118.4003]
[1680434937218,20.0,21.034,21.024,118.4003]
[1680434937810,10.0,21.035,21.024,118.4003]
[1680434938011,20.0,21.034,21.024,118.4003]
[1680434938523,10.0,21.035,21.024,118.4003]
[1680434938728,20.0,21.034,21.024,118.4003]
[1680434939311,10.0,21.035,21.024,118.4003]
[1680434939522,20.0,21.034,21.024,118.4003]
[1680434940027,10.0,21.035,21.024,118.4003]
[1680434940328,20.0,21.034,21.024,118.4003]
[1680434940931,20.0,21.036,21.024,118.4003]
[1680434941233,30.0,21.036,21.024,118.4003]
[1680434941407,20.0,21.036,21.024,118.4003]
[1680434941609,17.0,21.035,21.024,118.4003]
[1680434941810,20.0,21.034,21.024,118.4003]
[1680434962034,10.0,21.036,21.024,118.4003]
[1680434962218,37.0,21.035,21.024,118.4003]
[1680435000865,20.0,21.035,21.024,118.4003]
[1680435001069,20.0,21.034,21.024,118.4003]
[1680435001766,10.0,21.035,21.024,118.4003]
[1680435001967,20.0,21.034,21.024,118.4003]
[1680435002970,10.0,21.035,21.024,118.4003]
[1680435003263,20.0,21.034,21.024,118.4003]
[1680435004370,10.0,21.035,21.024,118.4003]
[1680435004566,20.0,21.034,21.024,118.4003]
[1680435005270,10.0,21.037,21.024,118.4003]
[1680435005271,10.0,21.035,21.024,118.4003]
[1680435005571,20.0,21.034,21.024,118.4003]
[1680435007168,10.0,21.035,21.024,118.4003]
[1680435007373,20.0,21.034,21.024,118.4003]
[1680435009073,10.0,21.035,21.024,118.4003]
[1680435009254,20.0,21.034,21.024,118.4003]
[1680435010156,10.0,21.035,21.024,118.4003]
[1680435010357,20.0,21.034,21.024,118.4003]
[1680435010977,10.0,21.035,21.024,118.4003]
[1680435011177,37.0,21.034,21.024,118.4003]
[1680435011377,17.0,21.034,21.024,118.4003]
[1680435011570,20.0,21.033,21.024,118.4003]
[1680435012372,20.0,21.034,21.024,118.4003]
[1680435017475,49.22211257,21.038,21.024,118.4003]
[1680435017476,10.0,21.036,21.024,118.4003]
[1680435017777,37.0,21.035,21.024,118.4003]
[1680435019671,20.0,21.035,21.024,118.4003]
[1680435019872,10.0,21.036,21.024,118.4003]
[1680435020075,20.0,21.035,21.024,118.4003]
[1680435020980,10.0,21.036,21.024,118.4003]
[1680435021180,20.0,21.035,21.024,118.4003]
[1680435021977,10.0,21.036,21.024,118.4003]
[1680435022281,20.0,21.035,21.024,118.4003]
[1680435023580,20.0,21.037,21.024,118.4003]
[1680435027879,17.0,21.036,21.024,118.4003]
[1680435028082,20.0,21.035,21.024,118.4003]
[1680435028886,17.0,21.034,21.024,118.4003]
[1680435029086,20.0,21.033,21.024,118.4003]
[1680435032981,20.0,21.036,21.024,118.4003]
[1680435036489,10.0,21.034,21.024,118.4003]
[1680435036788,20.0,21.033,21.024,118.4003]
[1680435037482,20.0,21.034,21.024,118.4003]
[1680435044394,10.0,21.036,21.024,118.4003]
[1680435044588,20.0,21.035,21.024,118.4003]
[1680435045491,20.0,21.036,21.024,118.4003]
[1680435045797,17.0,21.035,21.024,118.4003]
[1680435045989,30.0,21.034,21.024,118.4003]
[1680435046300,20.0,21.034,21.024,118.4003]
[1680435055313,20.0,21.034,21.024,118.4003]
[1680435059512,10.0,21.036,21.024,118.4003]
[1680435059708,20.0,21.035,21.024,118.4003]
[1680435065417,10.0,21.037,21.024,118.4003]
[1680435065622,37.0,21.036,21.024,118.4003]
[1680435066317,20.0,21.036,21.024,118.4003]
[1680435072524,10.0,21.036,21.024,118.4003]
[1680435072712,20.0,21.035,21.024,118.4003]
[1680435077126,10.0,21.036,21.024,118.4003]
[1680435077431,20.0,21.035,21.024,118.4003]
[1680435081018,10.0,21.036,21.024,118.4003]
[1680435081224,20.0,21.035,21.024,118.4003]
[1680435084333,10.0,21.036,21.024,118.4003]
[1680435084535,20.0,21.035,21.024,118.4003]
[1680435086729,10.0,21.036,21.024,118.4003]
[1680435086929,20.0,21.035,21.024,118.4003]
[1680435087328,17.0,21.034,21.024,118.4003]
[1680435087527,30.0,21.033,21.024,118.4003]
[1680435088331,20.0,21.033,21.024,118.4003]
[1680435116557,10.0,21.036,21.024,118.4003]
[1680435116752,37.0,21.035,21.024,118.4003]
[1680435117353,20.0,21.035,21.024,118.4003]
[1680435119647,10.0,21.036,21.024,118.4003]
[1680435119959,37.0,21.035,21.024,118.4003]
[1680435141265,173.15572296,21.035,21.024,118.4003]
[1680435145073,10.0,21.034,21.021,113.5668]
[1680435145251,10.0,21.032,21.021,113.5668]
[1680435145567,10.0,21.03,21.021,113.5668]
[1680435145871,37.0,21.029,21.021,113.5668]
[1680435146053,76.22211257,21.029,21.021,113.5668]
[1680435158190,124.00807625,21.029,21.021,113.5668]
[1680435159879,107.00807625,21.029,21.021,113.5668]
[1680435160081,17.0,21.028,21.021,113.5668]
[1680435160282,20.0,21.027,21.021,113.5668]
[1680435160469,17.0,21.026,21.021,113.5668]